fUSD/lending_fUSD_20260316
["ID","MTS","AMOUNT","RATE_DAILY","PERIOD"]
[408443229,1773634241644,-115.54058198,0.00019373,2]
[408443230,1773634241653,-200.0,0.00019373,2]
[408443231,1773634241662,-322.99509802,0.00019373,2]
[408443233,1773634243302,-452.30886399,0.00019373,2]
[408443234,1773634243313,-268.69603799,0.00019373,2]
[408443235,1773634243322,-620.0,0.00019373,2]
[408443236,1773634243331,-440.90252255,0.00019373,2]
[408443237,1773634243342,-903.09747745,0.00019373,2]
[408443238,1773634243351,-1260.0,0.00019373,2]
[408443239,1773634243360,-1100.0,0.000194,7]
[408443240,1773634243370,-462.0,0.00019418,2]
[408443241,1773634243379,-1826.21566169,0.00019457,2]
[408443242,1773634243388,-2079.643091,0.00019489,2]
[408443243,1773634243397,-1000.0,0.000195,2]
[408443244,1773634243406,-1400.0,0.000195,7]
[408443245,1773634243415,-41.18323757,0.00019506,2]
[408443246,1773634243434,-1345.04676243,0.00019506,2]
[408443247,1773634243443,-462.0,0.00019544,2]
[408443248,1773634243452,-8923.46925535,0.00019567,2]
[408443249,1773634243461,-297.88465206,0.00019583,2]
[408443250,1773634243471,-992.24048268,0.000196,2]
[408443251,1773634243481,-200.0,0.000196,7]
[408443252,1773634243490,-150.0,0.00019615,2]
[408443253,1773634243501,-500.0,0.00019615,2]
[408443254,1773634243510,-150.0,0.00019615,2]
[408443255,1773634243521,-150.0,0.00019615,2]
[408443256,1773634243530,-150.54401614,0.00019615,2]
[408443257,1773634243539,-150.0,0.0001967,2]
[408443258,1773634243548,-500.0,0.0001967,2]
[408443259,1773634243557,-150.0,0.0001967,2]
[408443260,1773634243566,-150.0,0.0001967,2]
[408443262,1773634243576,-200.0,0.000197,7]
[408443264,1773634243585,-1357.2270518,0.00019706,2]
[408443266,1773634243594,-500.0,0.00019725,2]
[408443268,1773634243603,-90702.7564,0.00019735,2]
[408443269,1773634243612,-163.85864,0.00019735,2]
[408443270,1773634243621,-163.85864,0.00019735,2]
[408443272,1773634243630,-163.85864,0.00019735,2]
[408443273,1773634243639,-163.85864,0.00019735,2]
[408443274,1773634243649,-151.0,0.00019735,2]
[408443275,1773634243658,-151.0,0.00019735,2]
[408443276,1773634243667,-277.52832,0.00019735,2]
[408443277,1773634243677,-268.921368,0.00019735,2]
[408443278,1773634243686,-489.340309,0.00019735,2]
[408443279,1773634243695,-489.340309,0.00019735,2]
[408443280,1773634243705,-489.340309,0.00019735,2]
[408443281,1773634243714,-489.340309,0.00019735,2]
[408443282,1773634243723,-293.829049,0.00019735,2]
[408443283,1773634243734,-293.829049,0.00019735,2]
[408443284,1773634243744,-293.829049,0.00019735,2]
[408443285,1773634243753,-293.829049,0.00019735,2]
[408443286,1773634243762,-1500.0,0.00019768,2]
[408443287,1773634243771,-462.0,0.00019771,2]
[408443288,1773634243780,-500.9132546,0.00019773,2]
[408443289,1773634243789,-501.9386957,0.00019773,2]
[408443290,1773634243798,-350.0,0.00019777,2]
[408443291,1773634243808,-500.0,0.00019779,2]
[408443292,1773634243816,-462.0,0.00019787,2]
[408443293,1773634243826,-565.08716826,0.00019789,2]
[408443294,1773634243835,-1000.0,0.000198,2]
[408443296,1773634243844,-13499.5987,0.000198,2]
[408443298,1773634243853,-150.0,0.000198,2]
[408443299,1773634243863,-150.0,0.000198,30]
[408443300,1773634243872,-2453.89642655,0.000198,2]
[408443301,1773634243881,-1287.28423,0.000198,2]
[408443302,1773634243890,-1287.28423,0.000198,2]
[408443304,1773634243900,-1287.28422,0.000198,2]
[408443306,1773634243909,-1287.28423,0.000198,2]
[408443307,1773634243917,-151.0,0.000198,2]
[408443308,1773634243927,-151.0,0.000198,2]
[408443309,1773634243936,-249.58357,0.000198,2]
[408443310,1773634243945,-151.0,0.000198,2]
[408443311,1773634243954,-151.0,0.000198,2]
[408443312,1773634243963,-200.0,0.000198,7]
[408443313,1773634243972,-1049.72656679,0.00019807,2]
[408443314,1773634243981,-500.0,0.00019834,2]
[408443315,1773634243989,-2023.66332621,0.00019872,2]
[408443316,1773634244155,-462.0,0.00019878,2]
[408443317,1773634244164,-500.0,0.00019889,2]
[408443318,1773634244173,-333.80551454,0.00019899,2]
[408443319,1773634244183,-500.0,0.00019899,2]
[408443320,1773634244192,-500.0,0.00019899,2]
[408443321,1773634244201,-500.0,0.00019899,2]
[408443322,1773634244210,-502.83202664,0.00019899,2]
[408443323,1773634244219,-500.0,0.00019899,2]
[408443324,1773634244228,-500.0,0.00019899,2]
[408443325,1773634244237,-925.0,0.00019899,2]
[408443326,1773634244246,-3207.1288,0.000199,2]
[408443327,1773634244255,-5324.2813,0.000199,2]
[408443328,1773634244265,-8923.46925535,0.000199,2]
[408443329,1773634244276,-200.0,0.000199,7]
[408443330,1773634244285,-2038.91700461,0.000199,2]
[408443331,1773634244294,-1826.21566169,0.000199,2]
[408443332,1773634244303,-232.241065,0.000199,2]
[408443333,1773634244313,-232.241065,0.000199,2]
[408443334,1773634244322,-232.241065,0.000199,2]
[408443335,1773634244331,-232.241065,0.000199,2]
[408443336,1773634244340,-151.0,0.000199,2]
[408443337,1773634244349,-169.743636,0.000199,2]
[408443338,1773634244358,-151.0,0.000199,2]
[408443339,1773634244367,-1983.51650717,0.000199,3]
[408443340,1773634244376,-151.0,0.000199,2]
[408443341,1773634244385,-500.0,0.00019944,2]
[408443342,1773634244394,-500.0,0.00019973,2]
[408443343,1773634244404,-500.0,0.00019973,2]
[408443344,1773634244414,-40414.1805828,0.00019997,2]
[408443345,1773634244426,-2904.9304059,0.00019997,2]
[408443346,1773634244435,-500.0,0.00019999,2]
[408443347,1773634244444,-514.36102314,0.00019999,2]
[408443348,1773634244454,-157.414,0.00019999,2]
[408443349,1773634244463,-528.14542153,0.00019999,2]
[408443350,1773634244475,-769.0,0.0002,5]
[408443351,1773634244484,-508927.59603412,0.0002,2]
[408443352,1773634244497,-3047.58091749,0.0002,2]
[408443353,1773634244510,-977.36552474,0.0002,2]
[408443354,1773634244525,-458.16379479,0.0002,2]
[408443355,1773634244541,-293.6702315,0.00018631,2]
[408443356,1773634244550,-11614.9337104,0.0002,2]
[408443359,1773634246371,-151.0,0.00019119,2]
[408443360,1773634246380,-10825.6598789,0.0002,2]
[408443361,1773634246430,-3857.7123853,0.0002,2]
[408443362,1773634246516,-46648.89818731,0.0002,2]
[408443365,1773634246642,-1064.18229835,0.0002,2]
[408443366,1773634246653,-675.0096963,0.0002,2]
[408443368,1773634522025,5024.84,0.0002,120]
[408443385,1773635431438,-500.0,0.00016099,2]
[408443386,1773635431448,-306.44948031,0.00016167,2]
[408443387,1773635431457,-46.08598384,0.00016234,2]
[408443388,1773635431492,-1953.91401616,0.00016234,2]
[408443389,1773635431502,-193.17502185,0.00016466,2]
[408443390,1773635431511,-2500.0,0.0001654,2]
[408443391,1773635431521,-2500.0,0.0001654,2]
[408443392,1773635431531,-195.0,0.0001654,2]
[408443393,1773635431541,-195.0,0.0001654,2]
[408443394,1773635431550,-255.41332592,0.0001654,2]
[408443395,1773635431560,-172.13816476,0.000169,2]
[408443396,1773635431569,-300.0,0.00016999,2]
[408443397,1773635431579,-1200.0,0.00016999,2]
[408443398,1773635431588,-512.0,0.00017,2]
[408443399,1773635431598,-542.0,0.00017,2]
[408443400,1773635431607,-511.0,0.00017,2]
[408443401,1773635431617,-511.0,0.00017,2]
[408443402,1773635431626,-502.71070807,0.00017,2]
[408443403,1773635431635,-500.0,0.00017,2]
[408443404,1773635431644,-428.18051545,0.00017709,2]
[408443405,1773635431654,-2500.0,0.00017709,2]
[408443406,1773635431663,-195.0,0.00017709,2]
[408443407,1773635431673,-300.30611518,0.00017709,2]
[408443408,1773635431682,-2500.0,0.00017709,2]
[408443410,1773635431692,-195.0,0.00017709,2]
[408443412,1773635431702,-300.0,0.00017709,2]
[408443413,1773635431716,-365.86,0.00017709,2]
[408443414,1773635431727,-800.0,0.00017808,2]
[408443415,1773635431737,-4653.85,0.00017809,2]
[408443416,1773635431748,-200.0,0.00017907,2]
[408443417,1773635431762,-1500.0,0.00017907,2]
[408443418,1773635431771,-500.0,0.00017907,2]
[408443419,1773635431781,-3240.0,0.00017938,2]
[408443420,1773635431791,-365.86,0.00017983,2]
[408443421,1773635431802,-500.0,0.00017984,2]
[408443422,1773635431811,-168.1,0.00018218,2]
[408443423,1773635431821,-365.86,0.00018257,2]
[408443424,1773635431830,-365.86,0.00018531,2]
[408443425,1773635431840,-194.26,0.00018549,2]
[408443426,1773635431850,-420.0,0.00018567,2]
[408443427,1773635431861,-1680.0,0.00018659,2]
[408443428,1773635431871,-1029.0,0.00018778,2]
[408443429,1773635431882,-365.88138243,0.00018805,2]
[408443430,1773635431892,-235.6573594,0.00018904,2]
[408443431,1773635431902,-550.0,0.00018947,2]
[408443432,1773635431910,-500.0,0.00018948,2]
[408443433,1773635431921,-500.0,0.00018948,2]
[408443434,1773635431931,-500.0,0.00018948,2]
[408443435,1773635431940,-500.0,0.00018948,2]
[408443436,1773635431951,-500.0,0.00018948,2]
[408443437,1773635431961,-500.0,0.00018948,2]
[408443438,1773635431970,-500.0,0.00018948,2]
[408443439,1773635431982,-500.0,0.00018948,2]
[408443440,1773635431992,-500.0,0.00018948,2]
[408443441,1773635432002,-500.0,0.00018948,2]
[408443442,1773635432011,-500.0,0.00018948,2]
[408443443,1773635432020,-151.0,0.00018948,2]
[408443444,1773635432030,-500.0,0.00018948,2]
[408443445,1773635432040,-181.67968538,0.00018948,2]
[408443446,1773635432051,-151.0,0.00019003,2]
[408443447,1773635432060,-197.15852225,0.00019058,2]
[408443448,1773635432071,-1029.0,0.00019086,2]
[408443449,1773635432081,-32546.7273,0.00019173,2]
[408443450,1773635432091,-2500.0,0.00019173,2]
[408443451,1773635432101,-554.8525388,0.00019224,2]
[408443452,1773635432110,-302.21072523,0.00019228,2]
[408443453,1773635432119,-10003.52,0.00019233,2]
[408443454,1773635432128,-500.0,0.00019273,2]
[408443455,1773635432138,-16.31069197,0.00019273,2]
[408443456,1773635432150,-483.68930803,0.00019273,2]
[408443457,1773635432159,-188.9940742,0.00019273,2]
[408443458,1773635432172,-6513.71730388,0.00019273,2]
[408443459,1773635436738,439.9,0.0001,30]
[408443462,1773635437471,-156.84,0.00017907,2]
[408443463,1773635437481,-423.39789574,0.00019273,2]
[408443464,1773635437493,-1900.00166261,0.00019273,2]
[408443465,1773635437528,-6330.09649591,0.00019273,2]
[408443466,1773635437542,-1499.25322416,0.00019273,2]
[408443467,1773635437586,-1684.06110859,0.00019273,2]
[408443468,1773635437699,-378.06454204,0.00019273,2]
[408443469,1773635437711,-2154.12374456,0.00019273,2]
[408443470,1773635437722,-2398.63673396,0.00019273,2]
[408443474,1773635439917,-500.0,0.00019272,2]
[408443475,1773635439926,-321.139999,0.00019272,2]
[408443476,1773635440139,-178.860001,0.00019272,2]
[408443477,1773635440148,-277.82775257,0.00019272,2]
[408443478,1773635440158,-299685.17782943,0.00019273,2]
[408443488,1773635442505,-205430.42445912,0.00019273,2]
[408443489,1773635442515,-554.8525388,0.00019299,2]
[408443490,1773635442526,-302.21072522,0.00019324,2]
[408443492,1773635442535,-168.0,0.00019328,2]
[408443494,1773635442545,-671.29814906,0.00019339,2]
[408443496,1773635442554,-923.0,0.00019373,2]
[408443497,1773635442563,-620.0,0.00019373,2]
[408443498,1773635442572,-3511.0,0.00019373,2]
[408443499,1773635442581,-2464.0,0.00019373,2]
[408443500,1773635442591,-554.8525388,0.00019374,2]
[408443501,1773635442600,-1029.0,0.00019394,2]
[408443502,1773635442609,-302.21072522,0.0001942,2]
[408443503,1773635442619,-554.8525388,0.00019449,2]
[408443504,1773635442627,-302.21072522,0.00019516,2]
[408443505,1773635442637,-987.83660827,0.000196,2]
[408443506,1773635442646,-302.21072522,0.00019612,2]
[408443507,1773635442655,-168.0,0.00019612,2]
[408443508,1773635442664,-174.089,0.00019615,2]
[408443509,1773635442673,-1858.264,0.00019615,2]
[408443510,1773635442682,-168.0,0.00019625,2]
[408443511,1773635442691,-5774.96887006,0.000197,2]
[408443512,1773635442700,-302.21072522,0.00019708,2]
[408443513,1773635442710,-150.0,0.00019725,2]
[408443514,1773635442719,-168.0,0.00019731,2]
[408443515,1773635442729,-150.0,0.0001978,2]
[408443516,1773635442738,-5000.0,0.000198,2]
[408443517,1773635442748,-302.21072522,0.00019804,2]
[408443518,1773635442757,-378.92709719,0.00019821,2]
[408443519,1773635442772,-152.0,0.00019835,2]
[408443520,1773635442782,-168.0,0.00019866,2]
[408443521,1773635442791,-267.97502338,0.00019873,2]
[408443522,1773635442800,-502.77653877,0.00019873,2]
[408443523,1773635442810,-368.93202184,0.00019873,2]
[408443524,1773635442820,-500.0,0.00019873,2]
[408443525,1773635442829,-500.0,0.00019873,2]
[408443526,1773635442840,-500.0,0.00019873,2]
[408443527,1773635442849,-501.85464549,0.00019873,2]
[408443528,1773635442859,-411.52253395,0.00019873,2]
[408443529,1773635442868,-500.0,0.00019899,2]
[408443530,1773635442878,-500.0,0.00019899,2]
[408443531,1773635442888,-514.0415693,0.00019899,2]
[408443532,1773635442899,-156.0,0.000199,5]
[408443533,1773635442908,-320312.0707,0.000199,2]
[408443534,1773635442917,-1000.0,0.000199,2]
[408443535,1773635442926,-302.21072522,0.000199,2]
[408443536,1773635442935,-306.0,0.00019906,2]
[408443537,1773635442945,-199.88124326,0.0001999,2]
[408443538,1773635442954,-427.3278666,0.00019994,2]
[408443539,1773635442963,-8664.9201615,0.00019994,2]
[408443540,1773635442973,-513.36910926,0.00019999,2]
[408443541,1773635442982,-500.0,0.00019999,2]
[408443542,1773635442992,-500.0,0.00019999,2]
[408443543,1773635443001,-500.0,0.00019999,2]
[408443544,1773635443013,-512.15248621,0.00019999,2]
[408443545,1773635443023,-553.49386102,0.00019999,2]
[408443546,1773635443032,-493.0,0.0002,5]
[408443547,1773635443042,-561169.23901459,0.0002,2]
[408443548,1773635443078,-105.20266451,0.0002,2]
[408443549,1773635443095,-7367.2,0.0002,2]
[408443550,1773635443111,-6150.40569559,0.0002,2]
[408443560,1773635445432,-554.8525388,0.00019524,2]
[408443561,1773635445442,-35910.3118268,0.0002,2]
[408443562,1773635445453,-1496.33099007,0.0002,2]
[408443563,1773635445464,-7388.10291589,0.0002,2]
[408443564,1773635445474,-6000.0,0.0002,2]
[408443565,1773635445485,-12889.47867752,0.0002,2]
[408443579,1773636313437,152.0,2e-06,120]
[408443580,1773636314778,152.0,1.2e-05,120]
[408443581,1773636316058,152.0,2.2e-05,120]
[408443582,1773636317638,152.0,3.2e-05,120]
[408443583,1773636318924,152.0,4.2e-05,120]
[408443584,1773636320192,152.0,5.2e-05,120]
[408443585,1773636321473,152.0,6.2e-05,120]
[408443586,1773636322916,152.0,1.4e-06,30]
[408443587,1773636324167,152.0,1.14e-05,30]
[408443588,1773636325428,152.0,2.14e-05,30]
[408443589,1773636326707,152.0,3.14e-05,30]
[408443590,1773636327981,152.0,4.14e-05,30]
[408443591,1773636329576,152.0,5.14e-05,30]
[408443592,1773636330874,148.1,6.14e-05,30]
[408443593,1773636330898,3.9,6.14e-05,30]
[408443594,1773636332133,152.0,1e-06,2]
[408443595,1773636333387,154.07456754,1.1e-05,2]
[408443598,1773636573118,-571.8,0.00014463,2]
[408443599,1773636573141,-502.28593394,0.00014726,3]
[408443600,1773636573162,-300.0,0.00015273,2]
[408443601,1773636573182,-300.0,0.00015676,2]
[408443602,1773636573202,-631.50522511,0.00015909,2]
[408443603,1773636573224,-283.0,0.00015919,2]
[408443604,1773636573244,-500.0,0.00015999,2]
[408443605,1773636573264,-182.4386545,0.00016098,2]
[408443606,1773636573284,-1200.0,0.00016198,2]
[408443607,1773636573305,-418.32065993,0.000164,3]
[408443608,1773636573324,-166.76,0.00016712,2]
[408443609,1773636573347,-200.67583713,0.00016995,2]
[408443610,1773636573370,-561.0,0.00017,2]
[408443611,1773636573390,-206.6319274,0.0001718,2]
[408443612,1773636573410,-357.37,0.00017252,2]
[408443613,1773636573432,-627.99064999,0.00017795,2]
[408443626,1773636631506,-1200.0,0.00017899,2]
[408443627,1773636631519,-818.5020399,0.000179,2]
[408443628,1773636631531,-1681.4979601,0.000179,2]
[408443629,1773636631541,-195.0,0.000179,2]
[408443630,1773636631551,-2398.6367,0.000179,2]
[408443631,1773636631560,-3656.86,0.00017907,2]
[408443632,1773636631570,-210.61,0.00017907,2]
[408443633,1773636631580,-150.0,0.00017907,2]
[408443634,1773636631589,-326.69,0.00017907,2]
[408443635,1773636631600,-500.13,0.00017907,2]
[408443636,1773636631609,-1035.37,0.00017907,2]
[408443637,1773636631619,-2500.0,0.00017941,2]
[408443638,1773636631629,-1646.42311564,0.00017941,2]
[408443639,1773636631653,-5625.281947,0.00017809,2]
[408443640,1773636631663,-853.57688436,0.00017941,2]
[408443641,1773636631673,-2500.0,0.00017941,2]
[408443643,1773636631683,-195.0,0.00017941,2]
[408443645,1773636631692,-195.0,0.00017941,2]
[408443647,1773636631702,-195.0,0.00017941,2]
[408443648,1773636631711,-331.0,0.00017999,2]
[408443649,1773636631732,-512.53653167,0.00018,2]
[408443653,1773636631746,-933.98797267,0.00018,2]
[408443656,1773636631761,-7702.25243735,0.00018,7]
[408443658,1773636631777,-501.39212081,0.00018,2]
[408443661,1773636631790,-500.0,0.00018,2]
[408443662,1773636631803,-500.0,0.00018,2]
[408443663,1773636631814,-500.0,0.00018,2]
[408443664,1773636631826,-500.0,0.00018,2]
[408443665,1773636631839,-500.0,0.00018,2]
[408443666,1773636631851,-500.42908469,0.00018,2]
[408443667,1773636631862,-500.0,0.00018,2]
[408443668,1773636631875,-357.37,0.00018115,2]
[408443669,1773636631888,-2219.5,0.00018264,2]
[408443670,1773636631901,-3656.86,0.00018355,2]
[408443671,1773636631914,-166.66,0.00018444,2]
[408443672,1773636631928,-500.0,0.00018548,2]
[408443673,1773636631941,-500.0,0.00018548,2]
[408443674,1773636631953,-453.11964156,0.00018799,2]
[408443675,1773636631967,-98461.9268,0.000188,2]
[408443676,1773636631979,-4142.2444,0.000188,2]
[408443677,1773636631989,-3656.86,0.00018802,2]
[408443678,1773636631999,-194.42908711,0.00018873,2]
[408443679,1773636632012,-501.44386623,0.00018873,2]
[408443680,1773636632024,-502.54501889,0.00018873,2]
[408443681,1773636632035,-500.0,0.00018873,2]
[408443682,1773636632047,-501.71862419,0.00018873,2]
[408443683,1773636632059,-502.90185941,0.00018873,2]
[408443684,1773636632075,-500.96059113,0.00018873,2]
[408443685,1773636632087,-501.05181581,0.00018873,2]
[408443686,1773636632101,-500.0,0.00018873,2]
[408443687,1773636632113,-503.30261259,0.00018873,2]
[408443688,1773636632126,-159.05847124,0.00018873,2]
[408443689,1773636632139,-503.22825721,0.00018873,2]
[408443690,1773636632150,-500.0,0.00018873,2]
[408443691,1773636632161,-502.8043416,0.00018873,2]
[408443692,1773636632176,-500.0,0.00018873,2]
[408443693,1773636632187,-501.02691611,0.00018873,2]
[408443694,1773636632198,-504.29304807,0.00018873,2]
[408443695,1773636632211,-11.11867354,0.00018873,2]
[408443696,1773636632425,-492.88105662,0.00018873,2]
[408443697,1773636632437,-501.99262603,0.00018873,2]
[408443698,1773636632447,-503.39059615,0.00018873,2]
[408443699,1773636632457,-151.0,0.00018889,2]
[408443700,1773636632470,-151.0,0.00018889,2]
[408443701,1773636632481,-151.0,0.00018889,2]
[408443702,1773636632491,-234.76486537,0.00018889,2]
[408443703,1773636632504,-500.0,0.00018899,2]
[408443704,1773636632514,-307.60092342,0.00018899,2]
[408443705,1773636632525,-543.15857438,0.00018899,2]
[408443706,1773636632537,-500.0,0.00018899,2]
[408443707,1773636632547,-500.0,0.00018899,2]
[408443708,1773636632558,-500.0,0.00018899,2]
[408443709,1773636632568,-500.0,0.00018899,2]
[408443710,1773636632581,-500.0,0.00018899,2]
[408443711,1773636632592,-500.0,0.00018899,2]
[408443712,1773636632603,-500.0,0.00018899,2]
[408443713,1773636632613,-500.0,0.00018899,2]
[408443714,1773636632624,-500.0,0.00018899,2]
[408443715,1773636632635,-500.0,0.00018899,2]
[408443716,1773636632645,-500.0,0.00018899,2]
[408443717,1773636632656,-500.0,0.00018899,2]
[408443718,1773636632666,-500.0,0.00018899,2]
[408443719,1773636632677,-500.0,0.00018899,2]
[408443720,1773636632687,-500.0,0.00018899,2]
[408443721,1773636632698,-500.0,0.00018899,2]
[408443722,1773636632709,-500.0,0.00018899,2]
[408443723,1773636632723,-500.0,0.00018899,2]
[408443724,1773636632734,-500.0,0.00018899,2]
[408443725,1773636632745,-500.0,0.00018899,2]
[408443726,1773636632756,-123.06023052,0.00018899,2]
[408443727,1773636632779,-376.93976948,0.00018899,2]
[408443728,1773636632790,-298.41223052,0.00018899,2]
[408443736,1773636637525,-201.58776948,0.00018899,2]
[408443737,1773636637537,-343.56088817,0.00018899,2]
[408443738,1773636637550,-156.43911183,0.00018899,2]
[408443739,1773636637561,-237.06656013,0.00018899,2]
[408443740,1773636637574,-262.93343987,0.00018899,2]
[408443741,1773636637584,-500.0,0.00018899,2]
[408443742,1773636637595,-232.95927661,0.00018899,2]
[408443743,1773636637608,-267.04072339,0.00018899,2]
[408443744,1773636637619,-500.0,0.00018899,2]
[408443745,1773636637630,-500.0,0.00018899,2]
[408443746,1773636637640,-300.5320239,0.00018899,2]
[408443747,1773636637655,-199.4679761,0.00018899,2]
[408443748,1773636637666,-500.0,0.00018899,2]
[408443749,1773636637677,-500.0,0.00018899,2]
[408443750,1773636637688,-500.0,0.00018899,2]
[408443751,1773636637699,-500.0,0.00018899,2]
[408443752,1773636637710,-500.0,0.00018899,2]
[408443753,1773636637723,-451.2820239,0.00018899,2]
[408443754,1773636637737,-48.7179761,0.00018899,2]
[408443755,1773636637749,-500.0,0.00018899,2]
[408443756,1773636637758,-451.1326239,0.00018899,2]
[408443757,1773636637771,-48.8673761,0.00018899,2]
[408443758,1773636637781,-500.0,0.00018899,2]
[408443759,1773636637791,-451.6445539,0.00018899,2]
[408443760,1773636637803,-48.3554461,0.00018899,2]
[408443761,1773636637813,-339.49646471,0.00018899,2]
[408443762,1773636637824,-302.181769,0.00018899,2]
[408443763,1773636637833,-500.0,0.00018899,2]
[408443764,1773636637843,-500.0,0.00018899,2]
[408443765,1773636637852,-325.27744872,0.000189,2]
[408443772,1773636637867,-431.69598331,0.000189,2]
[408443773,1773636638085,-987.09350095,0.000189,2]
[408443774,1773636638101,-1337.35,0.000189,2]
[408443775,1773636638114,-300.23028141,0.000189,2]
[408443776,1773636638124,-14590.60567993,0.000189,2]
[408443777,1773636638139,-878.96667,0.000189,2]
[408443778,1773636638151,-1164.20361154,0.000189,2]
[408443779,1773636639778,-53420.37482414,0.000189,2]
[408443780,1773636639787,-453.11964154,0.00018921,2]
[408443781,1773636639795,-357.37,0.00018978,2]
[408443782,1773636639804,-510.80073945,0.00018999,2]
[408443783,1773636639813,-500.0,0.00018999,2]
[408443784,1773636639821,-500.0,0.00018999,2]
[408443785,1773636639830,-500.0,0.00018999,2]
[408443786,1773636639838,-500.0,0.00018999,2]
[408443787,1773636639847,-500.0,0.00018999,2]
[408443788,1773636639855,-500.0,0.00018999,2]
[408443789,1773636639865,-500.0,0.00018999,2]
[408443790,1773636639873,-500.0,0.00018999,2]
[408443791,1773636639882,-500.0,0.00018999,2]
[408443792,1773636639890,-504.29101988,0.00018999,2]
[408443793,1773636639899,-151.0,0.00018999,2]
[408443794,1773636639908,-151.0,0.00018999,2]
[408443795,1773636639916,-198.45949308,0.00018999,2]
[408443796,1773636639925,-500.0,0.00018999,2]
[408443797,1773636639933,-500.0,0.00018999,2]
[408443798,1773636639943,-500.0,0.00018999,2]
[408443799,1773636639951,-500.0,0.00018999,2]
[408443800,1773636639960,-500.0,0.00018999,2]
[408443801,1773636639970,-500.0,0.00018999,2]
[408443802,1773636639979,-500.0,0.00018999,2]
[408443803,1773636639988,-500.0,0.00018999,2]
[408443804,1773636639996,-500.0,0.00018999,2]
[408443805,1773636640004,-500.0,0.00018999,2]
[408443806,1773636640012,-500.0,0.00018999,2]
[408443807,1773636640021,-500.0,0.00018999,2]
[408443808,1773636640029,-48752.86198653,0.00019,2]
[408443809,1773636640037,-450.39765215,0.00019043,2]
[408443810,1773636640046,-453.11964154,0.00019044,2]
[408443811,1773636640054,-166.66,0.00019053,2]
[408443812,1773636640062,-225.0,0.00019084,2]
[408443813,1773636640071,-453.11964154,0.00019166,2]
[408443814,1773636640079,-1000.0,0.00019173,2]
[408443815,1773636640087,-2000.0,0.000192,2]
[408443816,1773636640095,-3656.86,0.0001925,2]
[408443817,1773636640107,-521.68230757,0.00019272,2]
[408443818,1773636640116,-536.98632402,0.00019272,2]
[408443819,1773636640125,-500.0,0.00019272,2]
[408443820,1773636640133,-502.5510018,0.00019272,2]
[408443821,1773636640142,-500.0,0.00019272,2]
[408443822,1773636640151,-209.50473574,0.00019272,2]
[408443823,1773636640159,-1909.27330247,0.00019273,2]
[408443824,1773636640168,-453.11964154,0.00019288,2]
[408443825,1773636640180,-1344.0,0.00019373,2]
[408443826,1773636640189,-620.0,0.00019373,2]
[408443827,1773636640198,-3511.0,0.00019373,2]
[408443828,1773636640207,-271.0,0.00019373,2]
[408443829,1773636640218,-414.0,0.00019373,2]
[408443830,1773636640228,-3756.0,0.00019373,2]
[408443831,1773636640239,-2464.0,0.00019373,2]
[408443832,1773636640248,-453.11964154,0.00019411,2]
[408443833,1773636640258,-502.74918587,0.00019421,2]
[408443834,1773636640268,-500.0,0.00019421,2]
[408443835,1773636640277,-337.0,0.00019443,2]
[408443836,1773636640287,-225.0,0.00019487,2]
[408443837,1773636640297,-453.11964154,0.00019533,2]
[408443838,1773636640307,-225.0,0.00019546,2]